Cogmind - Beta 17 @@@ ROGUE MODE // 2026.07.06 @ 16:01:15 Player: kite Result: Self-destructed Performance ------------- Evolutions (4) 2000 Regions Visited (14) 2800 Robots Destroyed (174) 870 Value Destroyed (9463) 9463 Prototype IDs (39) 780 Alien Tech Used (0) 0 Bonus (5752) 5752 TOTAL SCORE: 21665 Bonus ------- High Alert Combat Kills 3079 Follower Combat Kills 1073 Entered Garrisons 800 Entered DSFs 500 Aligned with FarCom 300 Cogmind --------- Core Integrity 638/850 Matter 280/300 Energy 95/160 System Corruption 2% Temperature Cool (9) Movement Walking (190) Ox1 Location -6/DSF Parts ------- > --- POWER (1) -------- Light Nuclear Core > --- PROPULSION (6) --- Carbon-fiber Leg Carbon-fiber Leg Carbon-fiber Leg Improved Carbon-fiber Leg Improved Carbon-fiber Leg > --- UTILITY (5) ------ High-capacity Storage Unit Advanced Melee Analysis Suite Reaction Control System Improved Heavy Armor Plating > --- WEAPON (3) ------- (None) > --- INVENTORY (20) --- Improved Carbon-fiber Leg Advanced Cooling System Improved Sensor Array Improved Signal Interpreter Transmission Jammer Improved Heavy Armor Plating Powered Armor Powered Armor Powered Armor Graphene Brace Dynamic Insulation System Remote Datajack Field Lobotomy Kit (4) Heavy Mace Peak State ------------ > --- POWER ------------ Light Fission Core > --- PROPULSION ------- Aluminum Leg Carbon-fiber Leg Carbon-fiber Leg Improved Carbon-fiber Leg Biometal Leg Biometal Leg > --- UTILITY ---------- High-capacity Storage Unit Advanced Melee Analysis Suite Transmission Jammer Powered Armor Graphene Brace > --- WEAPON ----------- Powered Hammer Great Axe Great Axe > --- INVENTORY -------- Light Nuclear Core Carbon-fiber Leg Carbon-fiber Leg Carbon-fiber Leg Carbon-fiber Leg Carbon-fiber Leg Improved Carbon-fiber Leg Improved Sensor Array Improved Signal Interpreter Reaction Control System Improved Heavy Armor Plating Improved Heavy Armor Plating Powered Armor Powered Armor Dynamic Insulation System Improved Datajack Field Lobotomy Kit Heavy Mace [Rating: 72] Favorites ----------- Power Micro Nuclear Core Engine Ion Engine Power Core Micro Nuclear Core Reactor Light Quantum Reactor Propulsion Light Treads Treads Light Treads Leg Biometal Leg Utility High-capacity Storage Unit Device Improved Heat Sink Storage High-capacity Storage Unit Processor Advanced Melee Analysis Suite Protection Hardened Light Armor Plating Weapon Great Axe Energy Gun Lightning Gun Ballistic Gun Shotgun Ballistic Cannon Bore Cannon Launcher Grenade Launcher Special Weapon Field Lobotomy Kit Impact Weapon Powered Hammer Slashing Weapon Great Axe Special Melee Weapon Datajack Build | -11 -10 -10 -10 -9 -8 -8 -8 -8 -7 -7 -7 -7 -6 -6 ------- Run | Yrd Mat Min Exi Min Mat Gar Mat Gar Fac Gar Fac Gar Fac DSF Slots Evolved 8 | . . . . . 4 . . . 2 . . . 2 . Power . | . . . . . . . . . . . . . . . Propulsion 4 | . . . . . 2 . . . . . . . 2 . Utility 3 | . . . . . 1 . . . 2 . . . . . Weapon 1 | . . . . . 1 . . . . . . . . . Parts Attached 139 | 7 7 . 2 . 6 22 16 4 8 23 13 18 3 10 Power 15 | 1 1 . . . . 1 1 1 1 3 1 3 . 2 Engine 5 | 1 1 . . . . . . . . 1 1 . . 1 Core 9 | . . . . . . 1 1 1 1 1 . 3 . 1 Reactor 1 | . . . . . . . . . . 1 . . . . Propulsion 37 | 2 . . . . 2 7 4 . 2 3 6 7 2 2 Treads 22 | 2 . . . . 2 7 4 . 2 3 1 1 . . Leg 15 | . . . . . . . . . . . 5 6 2 2 Wheel . | . . . . . . . . . . . . . . . Hover . | . . . . . . . . . . . . . . . Flight . | . . . . . . . . . . . . . . . Utility 46 | 2 4 . . . 1 5 4 . 4 9 3 8 . 6 Device 19 | 1 . . . . . 3 2 . 3 3 1 2 . 4 Storage 7 | 1 1 . . . 1 . 1 . 1 1 1 . . . Processor 4 | . 1 . . . . . . . . 1 . 2 . . Hackware . | . . . . . . . . . . . . . . . Protection 16 | . 2 . . . . 2 1 . . 4 1 4 . 2 Artifact . | . . . . . . . . . . . . . . . Weapon 41 | 2 2 . 2 . 3 9 7 3 1 8 3 . 1 . Energy Gun 15 | 2 . . . . . 5 5 1 1 1 . . . . Energy Cannon . | . . . . . . . . . . . . . . . Ballistic Gun 10 | . 2 . 1 . . 2 2 . . 3 . . . . Ballistic Cannon 3 | . . . . . 3 . . . . . . . . . Launcher 3 | . . . . . . 2 . 1 . . . . . . Special Weapon 1 | . . . . . . . . . . . 1 . . . Impact Weapon 2 | . . . . . . . . . . 1 1 . . . Slashing Weapon 5 | . . . . . . . . 1 . 3 1 . . . Piercing Weapon . | . . . . . . . . . . . . . . . Special Melee Weapon 2 | . . . 1 . . . . . . . . . 1 . Unidentified Prototypes 2 | . . . . . . . 2 . . . . . . . Corrupted Parts 4 | . . . . . . . . . . . . 4 . . System Corruption 19 | . . . . . . . . . . . . 19 . . Parts Lost 35 | . . . . . . 7 2 1 2 2 1 11 . 9 Power 4 | . . . . . . 1 . 1 1 . . . . 1 Propulsion 13 | . . . . . . 3 . . . 1 . 5 . 4 Utility 7 | . . . . . . 1 . . . 1 . 4 . 1 Weapon 11 | . . . . . . 2 2 . 1 . 1 2 . 3 Highest Loss Streak 8 | . . . . . . 2 1 1 1 1 1 4 . 8 To Critical Strikes . | . . . . . . . . . . . . . . . Average Backups 15 | 4 8 10 9 10 10 14 14 14 15 18 18 18 18 18 Power . | . . . . . . . . . . 1 1 1 1 1 Propulsion 3 | 2 1 2 2 2 . 1 2 2 2 3 7 6 8 5 Utility 4 | . 2 2 2 2 2 4 4 5 5 5 5 6 6 9 Weapon 5 | . 2 4 5 5 6 6 6 6 6 7 3 2 1 1 Tool/Special . | . . . . . . . . . . . . . . . Unused Backups 59 | . 7 . 1 . . 9 5 . 2 13 5 4 . 13 Power 5 | . 1 . . . . . . . 2 1 . 1 . . Propulsion 19 | . 4 . . . . 2 1 . . 4 2 2 . 4 Utility 22 | . . . 1 . . . 2 . . 7 3 1 . 8 Weapon 11 | . 2 . . . . 7 1 . . 1 . . . . Tool/Special 2 | . . . . . . . 1 . . . . . . 1 Average Slot Usage (%) 97 | . 98 100 99 100 84 99 99 98 96 97 91 95 93 92 Engine 4 | . 14 14 14 14 9 2 . . . 4 1 2 . . Core 3 | . . . . . . 6 9 8 7 1 . 4 6 5 Treads 28 | . 27 28 28 28 35 35 36 36 30 29 29 14 . . Leg 3 | . . . . . . . . . . . . 15 33 38 Device 8 | . . . . . . 8 9 9 13 12 7 11 13 7 Storage 10 | . 14 14 14 14 9 9 9 9 12 12 7 7 6 6 Processor 2 | . 2 . . . . . . . . 2 7 6 6 6 Protection 8 | . 11 14 14 14 9 9 8 9 7 7 6 6 6 6 Energy Gun 7 | . . . . . . 14 21 15 14 10 . . . . Ballistic Gun 8 | . 26 28 24 28 9 7 5 9 7 3 . . . . Impact Weapon 2 | . . . . . . . . . . 2 7 7 6 6 Slashing Weapon 5 | . . . . . . . . 1 . 5 14 14 12 12 Peak Build Rating 72 | 9 11 11 12 12 22 32 39 39 46 62 67 66 68 72 Average Rating 38 | 5 10 11 11 12 17 27 35 37 43 51 59 58 66 68 On Entrance 31 | . 9 11 11 12 12 22 31 38 39 44 60 55 65 68 Avg Prop Armor Cover (%) 3 | . . . . . . . . . . . 3 12 . 3 Naked Turns . | . . . . . . . . . . . . . . . Heaviest Build 85 | 15 26 26 26 26 49 54 47 44 65 85 85 85 71 77 Greatest Support 114 | 40 40 40 40 40 80 80 86 86 92 92 91 99 114 114 Greatest Overweight (x) 2 | . . . . . . 1 . . . 1 2 1 . 1 Average Overweight (x) . | . . . . . . . . . . . . . . . Largest Inventory Capacity 20 | 8 10 10 10 10 15 15 15 15 20 20 20 20 20 20 Average Capacity 16 | 7 8 10 10 10 13 15 15 15 16 20 20 20 20 20 Most Carried 20 | 6 10 10 10 10 14 15 15 15 17 20 20 20 19 20 Average Carried 15 | 4 8 9 9 10 10 14 14 14 15 19 19 18 18 19 Final Capacity 20 | 8 10 10 10 10 15 15 15 15 20 20 20 20 20 20 Final Carried 20 | 6 10 10 10 10 14 15 15 15 17 20 19 19 18 15 Class Distribution -------------------- 24% | Gladiator 23% | Mutant 15% | Scavenger-Skirmisher 12% | Skirmisher 11% | Scavenger-Tank 6% | Commander-Gladiator Dominant Class ---------------- Mutant | -10/Materials Mutant | -10/Mines Mutant | -10/Exiles Mutant | -9/Mines Mutant | -8/Materials Scavenger-Skirmisher | -8/Garrison Skirmisher | -8/Materials Skirmisher | -8/Garrison Tank | -7/Factory Scavenger-Tank | -7/Garrison Gladiator | -7/Factory Gladiator | -7/Garrison Commander-Gladiator | -6/Factory Scavenger-Gladiator | -6/DSF Resources | -11 -10 -10 -10 -9 -8 -8 -8 -8 -7 -7 -7 -7 -6 -6 ----------- Run | Yrd Mat Min Exi Min Mat Gar Mat Gar Fac Gar Fac Gar Fac DSF Matter Collected 4960 | 165 640 59 20 16 . 1209 247 355 98 1140 318 508 . 185 Remotely 338 | . . . . . . 338 . . . . . . . . Salvage Created 6689 | 101 761 62 . . . 937 413 666 215 1206 966 1247 . 115 Parts 353 | 7 50 6 . . . 57 25 44 13 58 38 50 . 5 Haulers Intercepted 5 | . 2 . . . . . 2 . . . . . . 1 Recyclers Shooed 1 | . 1 . . . . . . . . . . . . . Parts Field Recycled . | . . . . . . . . . . . . . . . Retrieved Matter . | . . . . . . . . . . . . . . . Parts Self-Destructed . | . . . . . . . . . . . . . . . Prevented . | . . . . . . . . . . . . . . . Parts Restored . | . . . . . . . . . . . . . . . Kills | -11 -10 -10 -10 -9 -8 -8 -8 -8 -7 -7 -7 -7 -6 -6 ------- Run | Yrd Mat Min Exi Min Mat Gar Mat Gar Fac Gar Fac Gar Fac DSF Combat Hostiles Destroyed 152 | . 12 1 . . . 26 8 25 4 29 17 29 . 1 Melee 36 | . . . . . . . . . . . 12 23 . 1 Guns 74 | . 12 1 . . . 17 8 12 4 20 . . . . Cannons 2 | . . . . . . 2 . . . . . . . . AOE 29 | . . . . . . 7 . 13 . 8 . 1 . . Classes Destroyed 17 | 2 7 . . . . 5 1 1 . . . 1 . . Worker 2 | . 2 . . . . . . . . . . . . . Builder 4 | . 3 1 . . . . . . . . . . . . Tunneler 2 | 2 . . . . . . . . . . . . . . Hauler 5 | . 2 . . . . . 2 . . . . . . 1 Recycler 6 | 1 2 . . . . . . . . . 3 . . . Operator 1 | . 1 . . . . . . . . . . . . . Watcher 2 | . 1 . . . . . . . 1 . . . . . Swarmer 30 | . 3 . . . . 2 3 11 . 7 3 . . 1 Cutter 1 | . . . . . . . 1 . . . . . . . Grunt 76 | . 9 1 . . . 12 3 8 3 16 10 14 . . Brawler 2 | . . . . . . . . 2 . . . . . . Duelist 1 | . . . . . . . . . . . . 1 . . Protector 1 | . . . . . . 1 . . . . . . . . Sentry 15 | . . . . . . 6 1 1 . 5 . 2 . . Demolisher 1 | . . . . . . 1 . . . . . . . . Hunter 10 | . . . . . . 1 . 1 1 1 1 5 . . Programmer 15 | . . . . . . 3 . 2 . . 3 7 . . Best Kill Streak 10 | 2 3 1 . . . 4 2 10 3 7 6 6 . 1 Combat Bots Only 10 | . 3 1 . . . 4 2 10 3 7 6 6 . 1 Max Kills in Single Turn 3 | 1 2 1 . . . 3 1 3 1 3 1 1 . 1 Gunslinging 1 | . . . . . . . . 1 . . . . . . Exploded 3 | . . . . . . 3 . 3 . 3 . 1 . . Melee 1 | . . . . . . . . . . . 1 1 . 1 Uniques/NPCs Destroyed . | . . . . . . . . . . . . . . . Combat | -11 -10 -10 -10 -9 -8 -8 -8 -8 -7 -7 -7 -7 -6 -6 -------- Run | Yrd Mat Min Exi Min Mat Gar Mat Gar Fac Gar Fac Gar Fac DSF Hostile Shots Fired 1023 | . 34 . . . . 149 38 64 23 210 95 273 . 137 Missed 314 | . 11 . . . . 43 11 25 6 81 24 67 . 46 Hits 709 | . 23 . . . . 106 27 39 17 129 71 206 . 91 Melee 8 | . . . . . . . 1 . . . 2 3 . 2 Projectile 701 | . 23 . . . . 106 26 39 17 129 69 203 . 89 AOE 8 | . . . . . . 5 2 . . . 1 . . . Critical Strikes 25 | . 1 . . . . 4 2 1 . 3 5 7 . 2 Part Disruptions 4 | . . . . . . . . . . . . . . 4 Damage Taken 9559 | 4 273 . . . . 1816 457 576 188 956 1040 2767 . 1482 Core 1006 | . 11 . . . . 241 47 55 8 85 73 274 . 212 Absorbed by Shields 850 | . . . . . . . . . 72 391 238 149 . . Regen/Repaired (Parts) 341 | . 199 . . . . . . . . . 142 . . . Core Remaining (%) 67 | 100 . . . 95 . . . 37 . . . 37 . . Volleys Fired 340 | 6 46 2 . 2 . 99 27 50 17 83 1 7 . . Largest 3 | 2 2 2 . 2 . 3 3 3 3 3 1 1 . . Hottest 206 | 90 46 46 . 46 . 185 165 141 151 206 . 33 . . Shots Fired 753 | 12 92 4 . 4 . 219 78 103 39 194 1 7 . . Gun 654 | 12 92 4 . 4 . 157 78 84 39 184 . . . . Cannon 49 | . . . . . . 49 . . . . . . . . Launcher 49 | . . . . . . 13 . 19 . 10 . 7 . . Special 1 | . . . . . . . . . . . 1 . . . Kinetic 318 | . 92 4 . 4 . 111 11 27 12 57 . . . . Thermal 232 | 6 . . . . . 48 4 27 20 127 . . . . Explosive 49 | . . . . . . 13 . 19 . 10 . 7 . . Electromagnetic 153 | 6 . . . . . 47 63 30 7 . . . . . Robot Hit Streak 23 | 3 13 3 . 1 . 23 7 6 6 17 7 3 . . Robot Miss Streak 7 | 5 3 1 . 5 . 6 7 3 5 4 . 3 . . Penetration Max 1 | . . . . . . 1 . . . 1 . . . . Secondary Targets 12 | . 3 . . . . 3 1 1 2 2 . . . . Max Gunslinging Chain 1 | . 1 . . . . 1 1 1 1 1 . . . . Shots Hit Robots 562 | 5 70 4 4 1 . 105 37 43 24 127 44 86 2 10 Core Hits 305 | 4 43 4 . . . 71 14 43 10 70 14 30 . 2 Critical Kills 4 | . . . . . . . . . . . 1 3 . . Critical Parts Destroyed 16 | . . . . . . 6 . . . . 5 5 . . Critical Strikes 45 | . . . . . . 13 . 1 1 6 7 17 . . Burn 10 | . . . . . . 3 . 1 1 5 . . . . Destroy 7 | . . . . . . 7 . . . . . . . . Blast 2 | . . . . . . 2 . . . . . . . . Corrupt 1 | . . . . . . 1 . . . . . . . . Smash 14 | . . . . . . . . . . . 6 8 . . Sever 11 | . . . . . . . . . . 1 1 9 . . Melee Attacks 278 | . . . 4 . . . . 13 . 25 75 143 2 16 Impact 106 | . . . . . . . . . . . 29 76 . 1 Slashing 166 | . . . . . . . . 13 . 25 46 67 . 15 Piercing . | . . . . . . . . . . . . . . . Sneak Attacks 13 | . . . 4 . . . . . . . 4 1 2 2 Combat Hostiles 1 | . . . . . . . . . . . 1 . . . Follow-up Attacks 35 | . . . . . . . . . . . 8 25 . 2 Damage Inflicted 16592 | 99 1088 58 . 12 . 3258 691 1587 436 3064 1932 3894 . 473 Guns 6622 | 62 1088 58 . 12 . 1436 650 739 436 2141 . . . . Cannons 514 | . . . . . . 514 . . . . . . . . Explosions 3197 | 37 . . . . . 1305 41 848 . 659 . 307 . . Melee 6256 | . . . . . . . . . . 264 1932 3587 . 473 Ramming 3 | . . . . . . 3 . . . . . . . . Kinetic 3237 | . 1088 58 . 12 . 1168 49 185 85 592 . . . . Thermal 2680 | 87 . . . . . 454 58 246 286 1549 . . . . Explosive 3119 | . . . . . . 1305 . 848 . 659 . 307 . . Electromagnetic 1297 | 12 . . . . . 328 584 308 65 . . . . . Impact 2983 | . . . . . . . . . . . 729 2205 . 49 Slashing 3273 | . . . . . . . . . . 264 1203 1382 . 424 Piercing . | . . . . . . . . . . . . . . . Highest Corruption 33 | . . . . . . . . 2 2 3 10 33 . 2 Average Corruption 7 | . . . . . . . . 1 2 2 5 17 . 1 Corruption Purged . | . . . . . . . . . . . . . . . Corruption Blocked . | . . . . . . . . . . . . . . . Effects 168 | . . . . . . . . 10 4 39 36 79 . . Message Errors 36 | . . . . . . . . 3 1 9 9 14 . . Matter Fused 37 | . . . . . . . . 4 1 6 5 21 . . Heat Flow Errors 20 | . . . . . . . . 2 1 3 5 9 . . Energy Discharges 27 | . . . . . . . . . . 5 7 15 . . Parts Rejected 2 | . . . . . . . . . . . . 2 . . Parts Fused 1 | . . . . . . . . . . 1 . . . . Data Loss (minor) 25 | . . . . . . . . 1 . 5 6 13 . . Data Loss (major) 7 | . . . . . . . . . . 2 4 1 . . Misfires 4 | . . . . . . . . . 1 3 . . . . Alerts 7 | . . . . . . . . . . 3 . 4 . . Weapon Failures 2 | . . . . . . . . . . 2 . . . . Overload Shots . | . . . . . . . . . . . . . . . Overflow Damage 900 | . . . . . . 8 . . . 22 359 509 . 2 Projectiles 8 | . . . . . . 8 . . . . . . . . Explosions 18 | . . . . . . . . . . 16 . 2 . . Melee 874 | . . . . . . . . . . 6 359 507 . 2 Knockbacks 21 | . . . . . . 10 . . . . 3 8 . . Impact 11 | . . . . . . . . . . . 3 8 . . Kinetic 8 | . . . . . . 8 . . . . . . . . Secondary 2 | . . . . . . 2 . . . . . . . . Self-Inflicted Damage 168 | 4 . . . . . 26 . 101 . 37 . . . . Shots 8 | 1 . . . . . 2 . 3 . 2 . . . . Rammed 1 | . . . . . . 1 . . . . . . . . Targets Rammed 1 | . . . . . . 1 . . . . . . . . Kicked . | . . . . . . . . . . . . . . . Crushed . | . . . . . . . . . . . . . . . Highest Temperature 515 | 132 22 . . . . 515 216 256 220 355 217 263 . . Average Temperature 93 | 55 10 . . . . 138 62 64 98 83 93 108 . . Received Heat Transfer 2525 | . 123 . . . . 495 153 126 60 352 356 536 . 324 Effects 18 | . . . . . . 12 . . . 5 . 1 . . Shutdowns 4 | . . . . . . 3 . . . 1 . . . . Energy Bleed 2 | . . . . . . 1 . . . . . 1 . . Interference 9 | . . . . . . 5 . . . 4 . . . . Matter Decay 1 | . . . . . . 1 . . . . . . . . Short Circuit 1 | . . . . . . 1 . . . . . . . . Damage (minor) 1 | . . . . . . 1 . . . . . . . . Siege Activations . | . . . . . . . . . . . . . . . Martial Activations . | . . . . . . . . . . . . . . . Shielding Activations . | . . . . . . . . . . . . . . . Robots Disrupted 1 | . . . . . . . . 1 . . . . . . Combat Hostiles 1 | . . . . . . . . 1 . . . . . . Robots Corrupted 10 | . . . . . . . . . . . 5 5 . . Combat Hostiles 10 | . . . . . . . . . . . 5 5 . . Parts Fried 10 | . . . . . . 1 1 . . . 3 5 . . Impact Corruptions 25 | . . . . . . . . . . . 10 15 . . Robots Melted 1 | . . . . . . . . . . 1 . . . . Combat Hostiles 1 | . . . . . . . . . . 1 . . . . Parts Melted 17 | 1 . . . . . 4 . . 4 8 . . . . Heat Transferred 6157 | 198 . . . . . 1133 87 555 703 3481 . . . . Parts Sabotaged . | . . . . . . . . . . . . . . . Parts Stolen . | . . . . . . . . . . . . . . . Parts Stripped . | . . . . . . . . . . . . . . . Power Chain Reactions 2 | 1 . . . . . . 1 . . . . . . . Alert | -11 -10 -10 -10 -9 -8 -8 -8 -8 -7 -7 -7 -7 -6 -6 ------- Run | Yrd Mat Min Exi Min Mat Gar Mat Gar Fac Gar Fac Gar Fac DSF Maximum Alert Level 5 | . . . . . . 4 4 4 2 5 4 5 4 3 Low Security (%) 19 | 100 100 100 . 100 100 16 . . . . . . . . Level 1 4 | . . . . . . 19 . . . 2 . . . . Level 2 13 | . . . . . . 16 . 23 100 25 . . . 27 Level 3 26 | . . . . . . 30 83 28 . 20 36 22 . 72 Level 4 25 | . . . . . . 17 16 48 . 27 63 36 100 . Level 5 10 | . . . . . . . . . . 23 . 40 . . High Security . | . . . . . . . . . . . . . . . Max Security . | . . . . . . . . . . . . . . . Peak Influence 2195 | 5 152 46 . . . 1564 1146 1283 673 1890 1306 2195 1152 795 Initial 1152 | . . 7 . . . 2 762 497 673 392 991 893 1152 774 Average 860 | . 59 8 . . . 672 892 983 601 1134 1119 1491 1128 740 Influence Increases 8043 | 15 454 85 . . 4 1672 751 796 145 1528 870 1432 5 286 Destroy 0b10 Robot/C 3760 | . 240 60 . . . 600 420 500 80 640 360 760 . 100 Destroy 0b10 Robot/NC 135 | 15 55 5 . . . 10 10 . 5 5 25 . . 5 Destroy Leader 452 | . 66 10 . . . 30 114 30 22 20 80 70 . 10 Allied During Kill 433 | . . 10 . . . 37 151 . . 13 9 177 . 36 Successful Hack 132 | . 33 . . . 4 14 8 16 8 14 30 . 5 . Select Force Hacks 60 | . 60 . . . . . . . . . . . . . Disable Machine 435 | . . . . . . 30 45 45 . 45 240 30 . . Anti-Garrison Action 1900 | . . . . . . 850 . 150 . 600 . 300 . . Destroy Structure 391 | . . . . . . 86 3 55 . 131 51 65 . . Lose Combat Pursuer 345 | . . . . . . 15 . . 30 60 75 30 . 135 Influence Decreases 7293 | 15 434 105 . . . 112 1550 278 868 198 1483 514 1093 643 Entered New Map 4522 | . . 13 . . . 2 802 268 610 168 899 384 1043 333 Time Decay 1711 | 15 434 72 . . . . 368 . 238 . 534 . 50 . Lost Part 350 | . . . . . . 70 20 10 20 20 10 110 . 90 Lost Ally 410 | . . 20 . . . 40 60 . . 10 40 20 . 220 Purge Threat 300 | . . . . . . . 300 . . . . . . . Squads Dispatched 20 | . 4 1 . . 1 . 3 . 1 . 9 . . 1 Investigation 9 | . 3 . . . . . 2 . 1 . 3 . . . Extermination 3 | . . . . . . . . . . . 3 . . . Reinforcement 4 | . 1 . . . 1 . 1 . . . . . . 1 Assault 4 | . . 1 . . . . . . . . 3 . . . Garrison . | . . . . . . . . . . . . . . . Intercept . | . . . . . . . . . . . . . . . Searches Triggered . | . . . . . . . . . . . . . . . Construction Impeded . | . . . . . . . . . . . . . . . Haulers Reinforced . | . . . . . . . . . . . . . . . Active Scanning Responses . | . . . . . . . . . . . . . . . Cargo Convoy Interrupts . | . . . . . . . . . . . . . . . Stealth | -11 -10 -10 -10 -9 -8 -8 -8 -8 -7 -7 -7 -7 -6 -6 --------- Run | Yrd Mat Min Exi Min Mat Gar Mat Gar Fac Gar Fac Gar Fac DSF Distress Signals 4 | . 2 . . . . . 1 . 1 . . . . . Communications Jammed . | . . . . . . . . . . . . . . . Distress Signals . | . . . . . . . . . . . . . . . Times Spotted 234 | . 22 2 . . . 31 25 22 11 32 28 41 . 20 Peak Tracking Total 9 | . 5 2 . . . 4 3 4 4 6 7 6 . 9 Tactical Retreats 13 | . . . . . . 1 . . 1 2 4 2 . 3 Traps | -11 -10 -10 -10 -9 -8 -8 -8 -8 -7 -7 -7 -7 -6 -6 ------- Run | Yrd Mat Min Exi Min Mat Gar Mat Gar Fac Gar Fac Gar Fac DSF Traps Triggered 16 | . 2 . . . . 4 1 . 1 4 2 1 . 1 Indirectly . | . . . . . . . . . . . . . . . Trap Hack Attempts . | . . . . . . . . . . . . . . . Triggered . | . . . . . . . . . . . . . . . Disarmed . | . . . . . . . . . . . . . . . Reprogrammed . | . . . . . . . . . . . . . . . Reused . | . . . . . . . . . . . . . . . Traps Extracted . | . . . . . . . . . . . . . . . Installed . | . . . . . . . . . . . . . . . Triggered . | . . . . . . . . . . . . . . . Machines | -11 -10 -10 -10 -9 -8 -8 -8 -8 -7 -7 -7 -7 -6 -6 ---------- Run | Yrd Mat Min Exi Min Mat Gar Mat Gar Fac Gar Fac Gar Fac DSF Machines Disabled 45 | . . . . . . 7 3 6 . 6 16 7 . . Max in Single Turn 2 | . . . . . . 1 1 2 . 1 1 2 . . Garrison Relay 13 | . . . . . . 5 . 3 . 3 . 2 . . Machines Repaired . | . . . . . . . . . . . . . . . Machines Dismantled . | . . . . . . . . . . . . . . . Machines Sabotaged . | . . . . . . . . . . . . . . . Overloaded Fab Kills . | . . . . . . . . . . . . . . . Hacking | -11 -10 -10 -10 -9 -8 -8 -8 -8 -7 -7 -7 -7 -6 -6 --------- Run | Yrd Mat Min Exi Min Mat Gar Mat Gar Fac Gar Fac Gar Fac DSF Machines Accessed 35 | . 7 . 2 . 1 4 6 1 4 1 8 . 1 . Terminals 22 | . 4 . . . . 4 4 1 2 1 5 . 1 . Fabricators 1 | . . . . . . . . . 1 . . . . . Repair Stations 3 | . 1 . . . . . . . . . 2 . . . Recycling Units 3 | . 2 . . . . . 1 . . . . . . . Scanalyzers . | . . . . . . . . . . . . . . . Garrison Access 4 | . . . . . 1 . 1 . 1 . 1 . . . Total Hacks 82 | . 21 . 5 . 1 9 18 1 9 2 15 . 1 . Successful 47 | . 16 . 5 . 1 1 8 1 8 1 5 . 1 . Failed 35 | . 5 . . . . 8 10 . 1 1 10 . . . Catastrophic 11 | . 2 . . . . 2 2 . . 1 4 . . . Database Lockouts . | . . . . . . . . . . . . . . . Manual 42 | . 11 . 1 . . . 17 . 4 . 9 . . . Terminals 51 | . 10 . . . . 9 14 1 6 2 8 . 1 . Fabricators 2 | . . . . . . . . . 2 . . . . . Repair Stations 12 | . 9 . . . . . . . . . 3 . . . Recycling Units 5 | . 2 . . . . . 3 . . . . . . . Scanalyzers . | . . . . . . . . . . . . . . . Garrison Access 7 | . . . . . 1 . 1 . 1 . 4 . . . Terminal Hacks 19 | . 4 . 5 . . 1 3 1 2 1 1 . 1 . Record 4 | . . . 4 . . . . . . . . . . . Part Schematic 1 | . 1 . . . . . . . . . . . . . Robot Analysis 1 | . 1 . . . . . . . . . . . . . Open DSF 1 | . . . . . . . . . . . . . 1 . Level Access Points 1 | . . . . . . . . . . . 1 . . . Branch Access Points 1 | . 1 . . . . . . . . . . . . . Emergency Access Points 1 | . . . . . . 1 . . . . . . . . Alert Level 1 | . . . . . . . 1 . . . . . . . Unreport Threat 2 | . . . . . . . 2 . . . . . . . Locate Traps 1 | . . . . . . . . . 1 . . . . . Registered Components 1 | . 1 . . . . . . . . . . . . . Zone Layout 1 | . . . . . . . . . 1 . . . . . Garrison Registry 1 | . . . . . . . . . . 1 . . . . Security Stations 1 | . . . . . . . . 1 . . . . . . Proto ID Catalog 1 | . . . 1 . . . . . . . . . . . Fabricator Hacks 2 | . . . . . . . . . 2 . . . . . Load Schematic 1 | . . . . . . . . . 1 . . . . . Build 1 | . . . . . . . . . 1 . . . . . Repair Station Hacks 8 | . 8 . . . . . . . . . . . . . Scan Component 4 | . 4 . . . . . . . . . . . . . Repair 4 | . 4 . . . . . . . . . . . . . Recycling Unit Hacks . | . . . . . . . . . . . . . . . Scanalyzer . | . . . . . . . . . . . . . . . Garrison Access Hacks 4 | . . . . . 1 . 1 . 1 . 1 . . . Unlock Access 4 | . . . . . 1 . 1 . 1 . 1 . . . Unauthorized Hacks 14 | . 4 . . . . . 4 . 3 . 3 . . . Terminals 10 | . 2 . . . . . 3 . 3 . 2 . . . Assimilate 1 | . . . . . . . . . 1 . . . . . Botnet 9 | . 2 . . . . . 3 . 2 . 2 . . . Fabricators . | . . . . . . . . . . . . . . . Repair Stations 1 | . . . . . . . . . . . 1 . . . Patch 1 | . . . . . . . . . . . 1 . . . Recycling Units 3 | . 2 . . . . . 1 . . . . . . . Recyclers 1 | . . . . . . . 1 . . . . . . . Tunnel 2 | . 2 . . . . . . . . . . . . . Scanalyzers . | . . . . . . . . . . . . . . . Garrison Access . | . . . . . . . . . . . . . . . Data Cores Recovered . | . . . . . . . . . . . . . . . Used . | . . . . . . . . . . . . . . . Hacking Detections 26 | . 4 . . . . 4 6 . 4 1 6 . 1 . Full Trace Events 7 | . . . . . . 2 1 . 1 1 2 . . . Feedback Events 2 | . . . . . . . . . . 1 1 . . . Corruption 2 | . . . . . . . . . . 1 1 . . . Feedback Blocked . | . . . . . . . . . . . . . . . Robot Schematics Acquired . | . . . . . . . . . . . . . . . Robots Built . | . . . . . . . . . . . . . . . Authchips . | . . . . . . . . . . . . . . . Time . | . . . . . . . . . . . . . . . Total Robot Build Rating . | . . . . . . . . . . . . . . . Part Schematics Acquired 1 | . 1 . . . . . . . . . . . . . Parts Built 1 | . . . . . . . . . 1 . . . . . Authchips . | . . . . . . . . . . . . . . . Time 51 | . . . . . . . . . 51 . . . . . Total Part Build Rating 1 | . . . . . . . . . 1 . . . . . Part Studies Acquired . | . . . . . . . . . . . . . . . Parts Repaired 4 | . 4 . . . . . . . . . . . . . Time 116 | . 116 . . . . . . . . . . . . . Parts Recycled . | . . . . . . . . . . . . . . . Recycled Matter . | . . . . . . . . . . . . . . . Retrieved Matter . | . . . . . . . . . . . . . . . Retrieved Components . | . . . . . . . . . . . . . . . Parts Scanalyzed . | . . . . . . . . . . . . . . . Part Schematics Acquired . | . . . . . . . . . . . . . . . Parts Damaged . | . . . . . . . . . . . . . . . Bothacking | -11 -10 -10 -10 -9 -8 -8 -8 -8 -7 -7 -7 -7 -6 -6 ------------ Run | Yrd Mat Min Exi Min Mat Gar Mat Gar Fac Gar Fac Gar Fac DSF Used RIF Installer . | . . . . . . . . . . . . . . . Robots Hacked 6 | . . . 4 . . . . . . . . . 2 . Non-combat 5 | . . . 3 . . . . . . . . . 2 . Combat 1 | . . . 1 . . . . . . . . . . . Robot Hacks Applied 6 | . . . 4 . . . . . . . . . 2 . parse_system 4 | . . . 4 . . . . . . . . . . . find_chute 1 | . . . . . . . . . . . . . 1 . find_recycling 1 | . . . . . . . . . . . . . 1 . Relay Couplers Released 50 | . . . . . . 17 . 13 . 11 . 9 . . Machine Destruction 50 | . . . . . . 17 . 13 . 11 . 9 . . Fabnet Peak Effective % . | . . . . . . . . . . . . . . . Robots Rewired 20 | . . . . . . 8 . . . . . 12 . . Allies Hacked 2 | . . . . . . . . . . . 2 . . . Hacks Repelled . | . . . . . . . . . . . . . . . Allies | -11 -10 -10 -10 -9 -8 -8 -8 -8 -7 -7 -7 -7 -6 -6 -------- Run | Yrd Mat Min Exi Min Mat Gar Mat Gar Fac Gar Fac Gar Fac DSF Total Allies 27 | . . 3 . . . 8 . . 1 2 1 12 . . Largest Group 11 | . . 3 1 1 1 6 6 . 1 2 2 11 11 11 Highest-Rated Group 340 | . . 76 31 31 31 129 129 . 10 160 160 340 340 340 Highest-Rated Ally 80 | . . 31 31 31 31 34 31 . 10 80 80 40 40 40 Initial Warlord ECA Mod 27 | . . . . . . . 9 9 13 13 22 22 27 27 Total Orders 4 | . . . . . . . 1 . . . . 2 . 1 STAY 2 | . . . . . . . 1 . . . . 1 . . ROAM 1 | . . . . . . . . . . . . . . 1 FOLLOW 1 | . . . . . . . . . . . . 1 . . Ally Attacks 165 | . . 5 . . 4 15 62 . . 9 11 31 . 28 Total Damage 4725 | . . 103 . . . 479 927 . . 439 1079 768 . 930 Kills 41 | . . 2 . . . 5 15 . . 3 3 9 . 4 Allies Corrupted 1 | . . . . . . . . . . . 1 . . . Allies Melted . | . . . . . . . . . . . . . . . Field Lobotomies 1 | . . . . . . . . . . . 1 . . . Intel | -11 -10 -10 -10 -9 -8 -8 -8 -8 -7 -7 -7 -7 -6 -6 ------- Run | Yrd Mat Min Exi Min Mat Gar Mat Gar Fac Gar Fac Gar Fac DSF Active Infowar (turns) 939 | 19 5 . . . . . . . . . . 689 102 124 Terrain 24 | 19 5 . . . . . . . . . . . . . Jamming 915 | . . . . . . . . . . . . 689 102 124 Robot Analysis Total 1 | . 1 . . . . . . . . . . . . . Derelict Logs Recovered . | . . . . . . . . . . . . . . . Drone Launches . | . . . . . . . . . . . . . . . Drone Recoveries . | . . . . . . . . . . . . . . . Exploration | -11 -10 -10 -10 -9 -8 -8 -8 -8 -7 -7 -7 -7 -6 -6 ------------- Run | Yrd Mat Min Exi Min Mat Gar Mat Gar Fac Gar Fac Gar Fac DSF Turns Passed 14065 | 109 1404 316 865 113 191 2543 859 901 502 2359 1509 1898 112 384 Spaces Moved 7255 | 47 681 165 535 64 105 1305 463 436 272 1205 696 963 86 232 Core 4 | 4 . . . . . . . . . . . . . . Treads 6356 | 43 681 165 535 64 105 1305 463 436 272 1205 694 388 . . Legs 895 | . . . . . . . . . . . 2 575 86 232 Wheels . | . . . . . . . . . . . . . . . Hover . | . . . . . . . . . . . . . . . Flight . | . . . . . . . . . . . . . . . Fastest Speed 50 | 50 160 160 160 160 160 160 151 151 151 155 165 115 115 116 Average Speed 154 | 150 160 160 160 160 160 160 155 151 153 158 165 139 115 118 Slowest Speed 325 | 160 160 160 160 160 160 240 162 151 155 238 325 246 116 190 Overloaded Moves . | . . . . . . . . . . . . . . . Propulsion Burnouts . | . . . . . . . . . . . . . . . Robots Hopped . | . . . . . . . . . . . . . . . Potential Cave-ins . | . . . . . . . . . . . . . . . Cave-ins Triggered . | . . . . . . . . . . . . . . . Exploration Rate (%) 46 | 5 91 26 65 14 10 94 49 55 7 84 24 73 4 93 Regions Visited 14 Branch Regions 3 Pre-discovered Areas 3 | . 2 . 1 . . . . . . . . . . . Known Exits Taken 6 | . 1 . . . 1 . 1 . 1 . 1 . 1 . Unknown Exits Taken 4 | 1 . 1 1 1 . . . . . . . . . . Scrap Searched 2 | . . 1 . 1 . . . . . . . . . . Spaces Dug 34 | . . . . . . 1 . 5 . 6 10 12 . . Terrain Destroyed 190 | 4 . . . . . 49 3 32 . 56 10 36 . . Melee 33 | . . . . . . . . 5 . 6 10 12 . . Projectile 4 | . . . . . . 3 . . . 1 . . . . AOE 153 | 4 . . . . . 46 3 27 . 49 . 24 . . Terrain Rammed . | . . . . . . . . . . . . . . . Walls Destroyed . | . . . . . . . . . . . . . . . Machines Disabled . | . . . . . . . . . . . . . . . Actions | -11 -10 -10 -10 -9 -8 -8 -8 -8 -7 -7 -7 -7 -6 -6 --------- Run | Yrd Mat Min Exi Min Mat Gar Mat Gar Fac Gar Fac Gar Fac DSF Total 9158 | 70 907 214 544 71 128 1581 552 567 328 1464 944 1365 98 325 Wait 659 | 5 143 46 . 6 7 29 6 57 12 42 136 134 6 30 Move 7241 | 46 680 164 534 63 105 1304 463 435 272 1202 696 960 85 232 Hop . | . . . . . . . . . . . . . . . Pick Up 143 | 6 13 1 2 . 7 23 12 1 8 25 12 22 1 10 Fast Attach 64 | 7 8 . . . 3 9 6 1 4 5 5 8 . 8 Attach 44 | . 1 . 1 . 3 4 1 1 1 5 2 17 2 6 Detach 7 | . . . . . . 1 . . . . 2 4 . . Swap 118 | . 2 . 1 . . 21 13 8 5 38 15 10 2 3 Drop 175 | . 14 1 2 . 3 28 24 1 9 37 18 18 . 20 Fire 340 | 6 46 2 . 2 . 99 27 50 17 83 1 7 . . Melee 217 | . . . 4 . . . . 13 . 25 57 102 2 14 Ram . | . . . . . . . . . . . . . . . Kick . | . . . . . . . . . . . . . . . Crush 1 | . . . . . . 1 . . . . . . . . Escape Stasis 7 | . . . . . . . . . . 2 . 4 . 1 Rewire 142 | . . . . . . 62 . . . . . 79 . 1 Trap . | . . . . . . . . . . . . . . . Miscellaneous . | . . . . . . . . . . . . . . . Route ------- -11/Scrapyard -10/Materials (discovered 4 exits: [*Mat x3] / *Min) -10/Mines (discovered 2 exits: [*Mat] / *Exi) -10/Exiles -9/Mines -8/Materials -8/Garrison (discovered 4 exits: *Mat x4) -8/Materials (discovered 3 exits: *Fac / [*Sto] / Gar) -8/Garrison (discovered 2 exits: *Fac x2) -7/Factory -7/Garrison (discovered 3 exits: *Fac x3) -7/Factory (discovered 5 exits: Fac x4 / Gar) -7/Garrison (discovered 3 exits: *Fac x3) -6/Factory -6/DSF (discovered 1 exit: [*Fac]) History --------- Turn | Location | Event 7 | -11/Scrapyard | Discovered new exit (range 14) 110 | -11/Scrapyard | Entered Materials 306 | -10/Materials | Build established: Mutant 593 | -10/Materials | Discovered new exit (range 15) 767 | -10/Materials | Discovered new exit (range 12) 839 | -10/Materials | Repaired Lgt. Treads 867 | -10/Materials | Repaired Lgt. Treads 900 | -10/Materials | Repaired Shotgun 934 | -10/Materials | Repaired Shotgun 1023 | -10/Materials | Discovered new exit (range 16) 1030 | -10/Materials | Identified exit to Mines 1200 | -10/Materials | Discovered new exit (range 16) 1514 | -10/Materials | Entered Mines 1560 | -10/Mines | A weapon hastily lodged in a ceiling crevice suddenly fell to the ground 1613 | -10/Mines | Discovered new exit (range 6) 1725 | -10/Mines | Met a Derelict testing a Signal Generator 1810 | -10/Mines | Deemed a non-threat by the Exiles lab entrance 1810 | -10/Mines | Discovered new exit (range 5) 1830 | -10/Mines | Entered Exiles 1830 | -10/Exiles | Accompanied by 1 ally 1869 | -10/Exiles | Met 8R-AWN 1896 | -10/Exiles | Met EX-HEX 1939 | -10/Exiles | Met EX-BIN 1960 | -10/Exiles | Aligned with FarCom system 1962 | -10/Exiles | Given EX-Vault access code 1998 | -10/Exiles | Opened EX-Vault 2043 | -10/Exiles | Warned to stay clear of 0b10 Research branches 2217 | -10/Exiles | Met EX-DEC 2342 | -10/Exiles | Found Field Lobotomy Kit 2561 | -10/Exiles | Discovered new exit (range 12) 2636 | -10/Exiles | Learned location of Zion (-6) 2695 | -10/Exiles | Left Exiles lab with Field Lobotomy Kit 2695 | -10/Exiles | Entered Mines 2695 | -9/Mines | Accompanied by 1 ally 2737 | -9/Mines | Discovered new exit (range 3) 2808 | -9/Mines | Entered Materials 2808 | -8/Materials | Accompanied by 1 ally 2808 | -8/Materials | Evolved 4 slots: Propulsion x2, Utility x1, Weapon x1 2999 | -8/Materials | Identified exit to Garrison 2999 | -8/Materials | Entered Garrison 3055 | -8/Garrison | Triggered checkpoint 3248 | -8/Garrison | Garrison Relay disabled 3305 | -8/Garrison | Garrison Relay disabled 3464 | -8/Garrison | Build established: Skirmisher 3902 | -8/Garrison | Triggered checkpoint 3922 | -8/Garrison | Triggered checkpoint 3981 | -8/Garrison | Triggered checkpoint 4047 | -8/Garrison | Triggered checkpoint 4081 | -8/Garrison | Garrison Relay disabled 4175 | -8/Garrison | Discovered new exit (range 13) 4239 | -8/Garrison | Build established: Scavenger-Skirmisher 4329 | -8/Garrison | Triggered checkpoint 4355 | -8/Garrison | Garrison Relay disabled 4736 | -8/Garrison | Discovered new exit (range 14) 5071 | -8/Garrison | Discovered new exit (range 10) 5083 | -8/Garrison | Triggered checkpoint 5105 | -8/Garrison | Garrison Relay disabled 5163 | -8/Garrison | Triggered checkpoint 5222 | -8/Garrison | Discovered new exit (range 5) 5542 | -8/Garrison | Entered Materials 5542 | -8/Materials | Accompanied by 6 allies 5864 | -8/Materials | Lost 3 allies 5894 | -8/Materials | Discovered new exit (range 11) 6238 | -8/Materials | Discovered new exit (range 11) 6286 | -8/Materials | Build established: Skirmisher 6308 | -8/Materials | Core integrity fell below 50% 6401 | -8/Materials | Identified exit to Garrison 6401 | -8/Materials | Entered Garrison 6451 | -8/Garrison | Triggered checkpoint 6492 | -8/Garrison | Garrison Relay disabled 6509 | -8/Garrison | Learned Factory security intel 6604 | -8/Garrison | Triggered checkpoint 6613 | -8/Garrison | Triggered checkpoint 6627 | -8/Garrison | Triggered checkpoint 6683 | -8/Garrison | Destroyed 10 combat bots 6704 | -8/Garrison | Triggered checkpoint 6785 | -8/Garrison | Discovered new exit (range 9) 6825 | -8/Garrison | Triggered checkpoint 6864 | -8/Garrison | Garrison Relay disabled 7117 | -8/Garrison | Triggered checkpoint 7130 | -8/Garrison | Garrison Relay disabled 7158 | -8/Garrison | Discovered new exit (range 14) 7302 | -8/Garrison | Entered Factory 7302 | -7/Factory | Evolved 2 slots: Utility x2 7589 | -7/Factory | Fabricated Hcp. Storage Unit? 7802 | -7/Factory | Identified exit to Garrison 7804 | -7/Factory | Entered Garrison 7804 | -7/Garrison | Accompanied by 1 ally 8136 | -7/Garrison | Triggered checkpoint 8172 | -7/Garrison | Triggered checkpoint 8313 | -7/Garrison | Discovered new exit (range 11) 8454 | -7/Garrison | Triggered checkpoint 8650 | -7/Garrison | Garrison Relay disabled 8701 | -7/Garrison | Build established: Scavenger-Tank 8742 | -7/Garrison | Discovered new exit (range 15) 8742 | -7/Garrison | Discovered new exit (range 87) 8742 | -7/Garrison | Discovered new exit (range 68) 8858 | -7/Garrison | Triggered checkpoint 8953 | -7/Garrison | Garrison Relay disabled 8962 | -7/Garrison | Triggered checkpoint 9020 | -7/Garrison | Destroyed 7 combat bots 9222 | -7/Garrison | Triggered checkpoint 9268 | -7/Garrison | Garrison Relay disabled 9294 | -7/Garrison | Found embedded Infiltrators 9729 | -7/Garrison | Build established: Gladiator 9773 | -7/Garrison | Attempted to access garrison exit controls, blocked by remote lockdown 9969 | -7/Garrison | Attempted to access garrison exit controls, blocked by remote lockdown 10163 | -7/Garrison | Entered Factory 10163 | -7/Factory | Accompanied by 2 allies 10563 | -7/Factory | First assault squad dispatched 10755 | -7/Factory | Assimilated C-45 Heavy ARC with FLK Orb 11018 | -7/Factory | Identified exit to Factory 11294 | -7/Factory | System corruption reached 10% 11672 | -7/Factory | Identified exit to Garrison 11672 | -7/Factory | Entered Garrison 11737 | -7/Garrison | Triggered checkpoint 11758 | -7/Garrison | Garrison Relay disabled 11946 | -7/Garrison | Triggered checkpoint 12082 | -7/Garrison | Triggered checkpoint 12085 | -7/Garrison | Triggered checkpoint 12171 | -7/Garrison | Discovered exit to Factory (range 13) 12372 | -7/Garrison | Triggered checkpoint 12630 | -7/Garrison | Lost 4 parts (2n1u1w) 12729 | -7/Garrison | Attempted to access garrison exit controls, blocked by remote lockdown 12758 | -7/Garrison | Triggered checkpoint 12814 | -7/Garrison | Discovered exit to Factory (range 10) 12847 | -7/Garrison | Core integrity fell below 50% 12867 | -7/Garrison | Found Powered Armor 12871 | -7/Garrison | Found Powered Armor 12873 | -7/Garrison | Found Powered Armor 12875 | -7/Garrison | Found Powered Armor 13177 | -7/Garrison | Attempted to access garrison exit controls, blocked by remote lockdown 13207 | -7/Garrison | Build established: Commander-Gladiator 13242 | -7/Garrison | Triggered checkpoint 13296 | -7/Garrison | Garrison Relay disabled 13366 | -7/Garrison | Discovered exit to Factory (range 10) 13394 | -7/Garrison | Triggered checkpoint 13412 | -7/Garrison | Triggered checkpoint 13558 | -7/Garrison | System corruption reached 30% 13570 | -7/Garrison | Entered Factory 13570 | -6/Factory | Accompanied by 11 allies 13570 | -6/Factory | Evolved 2 slots: Propulsion x2 13679 | -6/Factory | Identified exit to DSF 13682 | -6/Factory | Entered DSF 13682 | -6/DSF | Accompanied by 11 allies 13730 | -6/DSF | Additional patrols routed to DSF 13755 | -6/DSF | Lost 4 allies 13825 | -6/DSF | Discovered new exit (range 16) 14066 | -6/DSF | Self-destructed Last Messages --------------- 13952_ Microactuators destroyed. 13960_ Acquired 5 matter. 14013_ C-30 ARC bursts open, deploying its payload. 14013_ S-27 Virus unfolds itself. 14023_ Great Axe destroyed. 14026_ Aluminum Leg destroyed. 14031_ S-27 Virus destroyed. 14040_ Powered Hammer follow-up attack on S-27 Virus. 14043_ Biometal Leg destroyed. 14044_ S-27 Virus destroyed. 14048_ Biometal Leg destroyed. 14051_ Lgt. Fission Core destroyed. 14052_ Carbon-fiber Leg destroyed. 14053_ Destroyed Autogun. 14060_ Critical hit (Burn: +37). 14062_ Powered Hammer destroyed. 14064_ Critical hit (Burn: +37). 14065_ Great Axe destroyed. Map ----- +----------------------------------------------------+ | ????????# #?########!!! ]]######## | | ???????# !????????#!! ]]#??????# | | ???????# !????????#!! ]]#??????# | | ???????## ##???????##" ###??????# | | ???????#! !????????# !!#??????# | | ???????#! !????????# !!#??????# | | ???????#! !????????# ! !!#??????# | | ??????### ############ ! ########## | | ??????#!! ## #!!!###=!!###!!!# | | ??????#!! ## *#!!!##%*!* ##!!!# | | ??????#!! * % bg=* | | ??????#!! ||= g=!% " | | ??????#!! !|%%!= != "%" =! | | ??????# ## ||#! !## ##!!!#! = | | ??????# ## |#!!!### ###!!!#!!! | | ??????### ############ ########## | | ???????#[ [[#??????#!! !!#??????? | | ???????#[ [[#??????#!! !!#??????? | | ???????#[ [[#??????#!! !!#??????? | | ???????## ###??????### ###??????? | | ???????#[ [[#??????# / |#??????? | | ???????#[%=[[#??????# gg ||#??????? | | ???????##*g###??????# ||#??????? | | ??????###%g##???#???### ###??????? | | ?????##""gx ##]]# ###=! ###??????? | | ????""""" @ [%[=%[ #??????? | | ????"##""< % =!!! #??????? | | ??????#"""""##]]#]]]#!!!!! #??????? | | ??????#"""""#?#######!!!!! #??????? | | ??????####"##???????#########??????? | | ?????????#"#???????????????????????? | | ?????????""????????????????????????? | | ???????????????????????????????????? | | ???????????????????????????????????? | | ???????????????????????????????????? | | ???????????????????????????????????? | | ???????????????????????????????????? | | | | | | | | | | | | | | | | | | | | | | | | | | | +----------------------------------------------------+ Best States ------------- Heat Dissipation 48 Energy Generation 25 Energy Capacity 490 Matter Stores 300 Matter Capacity 300 Sight Range 16 Terrain Scan Range 16 Terrain Scan Density 10 Jamming Range 12 EM Shielding 2 Armor Coverage 600 Melee Speed Boost 20 Evasion (%) 55 Targeting Accuracy 6 Melee Accuracy 8 Recoil Reduction 12 Item Schematics ----------------- Hcp. Storage Unit | -10/Materials | Hacked Robot Schematics ------------------ None Fabricated ------------ Hcp. Storage Unit | x1 | -7/Factory Repaired ---------- Lgt. Treads | 63% | -10/Materials Lgt. Treads | 61% | -10/Materials Shotgun | 65% | -10/Materials Shotgun | 53% | -10/Materials Studied --------- None Alien Tech Used ----------------- None Achievements -------------- None Challenges ------------ None Game ------ Seed AssaultDecoderMallet Manual? 0 Play Time 01:54:13 Cumulative 421.9 hours Start 2026.07.06 @ 07:08:31 End 2026.07.06 @ 16:01:15 Sessions 1 Manual Loads 0 Difficulty Rogue Special Mode None Game No. 384 Rogue 384 Adventurer 0 Explorer 0 Win Type - Total 11 Types 7/0/2/1/0/0/0/0/0/1 Lore% 61 Gallery% 68 Achievement% 64 Wizard Run 0 Options --------- Layout 1 ASCII 0 Keyboard 0 Movement Mouse Keybinds 0 Fullscreen 2 Font 24/Cog Map View 50x35 Zoom Use 11% Tactical HUD 1 Map Filters NONE Filters NONE Steam 1 RUN: 821ad5d7-85fa-410d-a017-ed1be63f4f99